[Event "Titled Tuesday Blitz July 27 2021"]
[White "Lee, Qing Aun"]
[Black "Araujo Sanchez, Josue"]
[WhiteFideId "5804167"]
[BlackFideId "6416896"]
[WhiteElo "2023"]
[BlackElo "2181"]
[Result "0-1"]
[Round "04"]
[TimeControl "180+1"]
[Date "2021.07.27"]
[WhiteClock "0:00:08"]
[BlackClock "0:01:24"]

1. e4 {[%clk 0:03:00]}  d5 {[%clk 0:02:59]} 2. exd5 {[%clk 0:03:00]}  Qxd5 {[%clk 0:03:00]} 3. Nc3 {[%clk 0:03:00]}  Qd6 {[%clk 0:03:01]} 4. d4 {[%clk 0:02:58]}  Nf6 {[%clk 0:03:01]} 5. Nf3 {[%clk 0:02:57]}  a6 {[%clk 0:03:02]} 6. g3 {[%clk 0:02:57]}  b5 {[%clk 0:03:02]} 7. Bf4 {[%clk 0:02:56]}  Qb6 {[%clk 0:03:03]} 8. Bg2 {[%clk 0:02:55]}  Bb7 {[%clk 0:03:03]} 9. O-O {[%clk 0:02:54]}  e6 {[%clk 0:03:03]} 10. a4 {[%clk 0:02:49]}  Bb4 {[%clk 0:02:46]} 11. Na2 {[%clk 0:02:21]}  Bd6 {[%clk 0:02:43]} 12. Ne5 {[%clk 0:02:05]}  O-O {[%clk 0:02:38]} 13. a5 {[%clk 0:02:00]}  Qa7 {[%clk 0:02:37]} 14. Bxb7 {[%clk 0:01:54]}  Qxb7 {[%clk 0:02:37]} 15. b4 {[%clk 0:01:52]}  Nd5 {[%clk 0:02:34]} 16. Nd3 {[%clk 0:01:39]}  Nxf4 {[%clk 0:02:32]} 17. gxf4 {[%clk 0:01:39]}  Qd5 {[%clk 0:02:30]} 18. c3 {[%clk 0:01:32]}  Nc6 {[%clk 0:02:29]} 19. Nac1 {[%clk 0:01:25]}  Ne7 {[%clk 0:02:29]} 20. Ne5 {[%clk 0:01:24]}  f6 {[%clk 0:02:28]} 21. Ned3 {[%clk 0:01:21]}  Qf5 {[%clk 0:02:28]} 22. Qd2 {[%clk 0:01:17]}  Nd5 {[%clk 0:02:28]} 23. Ne2 {[%clk 0:01:16]}  Rae8 {[%clk 0:02:24]} 24. Ng3 {[%clk 0:01:07]}  Qg4 {[%clk 0:02:20]} 25. Qe2 {[%clk 0:00:58]}  Qh4 {[%clk 0:02:19]} 26. Qf3 {[%clk 0:00:52]}  Nxf4 {[%clk 0:02:10]} 27. Nxf4 {[%clk 0:00:51]}  Qxf4 {[%clk 0:02:09]} 28. Qxf4 {[%clk 0:00:48]}  Bxf4 {[%clk 0:02:10]} 29. Ne4 {[%clk 0:00:46]}  Bd6 {[%clk 0:02:09]} 30. Rfe1 {[%clk 0:00:45]}  h6 {[%clk 0:02:08]} 31. Re2 {[%clk 0:00:45]}  f5 {[%clk 0:02:07]} 32. Nd2 {[%clk 0:00:43]}  Kf7 {[%clk 0:01:51]} 33. Rae1 {[%clk 0:00:40]}  Re7 {[%clk 0:01:51]} 34. Nf3 {[%clk 0:00:40]}  Kf6 {[%clk 0:01:52]} 35. Ne5 {[%clk 0:00:38]}  Bxe5 {[%clk 0:01:52]} 36. Rxe5 {[%clk 0:00:38]}  Rd8 {[%clk 0:01:53]} 37. Rc5 {[%clk 0:00:37]}  Rd6 {[%clk 0:01:49]} 38. Ree5 {[%clk 0:00:36]}  c6 {[%clk 0:01:48]} 39. Kf1 {[%clk 0:00:32]}  g5 {[%clk 0:01:48]} 40. Ke2 {[%clk 0:00:26]}  h5 {[%clk 0:01:47]} 41. Ke3 {[%clk 0:00:26]}  h4 {[%clk 0:01:46]} 42. c4 {[%clk 0:00:25]}  Red7 {[%clk 0:01:44]} 43. cxb5 {[%clk 0:00:16]}  cxb5 {[%clk 0:01:45]} 44. Rc8 {[%clk 0:00:14]}  Rxd4 {[%clk 0:01:45]} 45. Rec5 {[%clk 0:00:15]}  Rxb4 {[%clk 0:01:43]} 46. Rf8+ {[%clk 0:00:14]}  Ke7 {[%clk 0:01:43]} 47. Rh8 {[%clk 0:00:14]}  Re4+ {[%clk 0:01:43]} 48. Kf3 {[%clk 0:00:13]}  Rd3+ {[%clk 0:01:42]} 49. Kg2 {[%clk 0:00:14]}  Kd6 {[%clk 0:01:39]} 50. Rc1 {[%clk 0:00:12]}  Ke5 {[%clk 0:01:39]} 51. f3 {[%clk 0:00:11]}  Re2+ {[%clk 0:01:39]} 52. Kf1 {[%clk 0:00:11]}  Rxh2 {[%clk 0:01:39]} 53. Re1+ {[%clk 0:00:12]}  Kf4 {[%clk 0:01:39]} 54. Rxe6 {[%clk 0:00:10]}  Rd1+ {[%clk 0:01:38]} 55. Re1 {[%clk 0:00:09]}  Rh1+ {[%clk 0:01:25]} 56. Kg2 {[%clk 0:00:08]}  Rdxe1 {[%clk 0:01:24]} 0-1


[Site "https://www.chess.com"]

[Event "Titled Tuesday Blitz July 27 2021"]
[White "Madaminov, Mukhiddin"]
[Black "Urquhart, Ed"]
[WhiteFideId "14210703"]
[BlackFideId "2603748"]
[WhiteElo "1747"]
[BlackElo "2184"]
[Result "1-0"]
[Round "04"]
[TimeControl "180+1"]
[Date "2021.07.27"]
[WhiteClock "0:00:28"]
[BlackClock "0:00:04"]

1. e4 {[%clk 0:03:00]}  c5 {[%clk 0:02:59]} 2. Nf3 {[%clk 0:02:59]}  e6 {[%clk 0:02:59]} 3. d4 {[%clk 0:02:58]}  cxd4 {[%clk 0:03:00]} 4. Nxd4 {[%clk 0:02:59]}  Nc6 {[%clk 0:03:00]} 5. Nc3 {[%clk 0:02:59]}  Qc7 {[%clk 0:03:01]} 6. g3 {[%clk 0:02:59]}  a6 {[%clk 0:03:01]} 7. Bg2 {[%clk 0:02:59]}  Nf6 {[%clk 0:03:01]} 8. O-O {[%clk 0:02:59]}  Be7 {[%clk 0:03:02]} 9. Re1 {[%clk 0:02:59]}  O-O {[%clk 0:03:00]} 10. a4 {[%clk 0:02:50]}  d6 {[%clk 0:02:54]} 11. b3 {[%clk 0:02:43]}  Bd7 {[%clk 0:02:47]} 12. Bb2 {[%clk 0:02:43]}  Rac8 {[%clk 0:02:47]} 13. Qd2 {[%clk 0:02:37]}  Qb8 {[%clk 0:02:36]} 14. Rad1 {[%clk 0:02:34]}  Nxd4 {[%clk 0:02:34]} 15. Qxd4 {[%clk 0:02:33]}  b5 {[%clk 0:02:35]} 16. axb5 {[%clk 0:02:30]}  axb5 {[%clk 0:02:35]} 17. Ra1 {[%clk 0:02:31]}  b4 {[%clk 0:02:32]} 18. Nd5 {[%clk 0:02:22]}  exd5 {[%clk 0:02:29]} 19. exd5 {[%clk 0:02:22]}  Bd8 {[%clk 0:02:27]} 20. Re2 {[%clk 0:02:13]}  Re8 {[%clk 0:02:19]} 21. Rxe8+ {[%clk 0:02:05]}  Bxe8 {[%clk 0:02:20]} 22. g4 {[%clk 0:01:47]}  Qb6 {[%clk 0:02:04]} 23. Re1 {[%clk 0:01:39]}  Qxd4 {[%clk 0:02:00]} 24. Bxd4 {[%clk 0:01:40]}  Bd7 {[%clk 0:01:48]} 25. g5 {[%clk 0:01:38]}  Nh5 {[%clk 0:01:44]} 26. Bh3 {[%clk 0:01:34]}  f5 {[%clk 0:01:22]} 27. Ra1 {[%clk 0:01:03]}  Nf4 {[%clk 0:01:18]} 28. Bf1 {[%clk 0:01:01]}  Nh5 {[%clk 0:00:26]} 29. Be2 {[%clk 0:00:47]}  g6 {[%clk 0:00:22]} 30. Ra7 {[%clk 0:00:39]}  Rc7 {[%clk 0:00:20]} 31. Ra8 {[%clk 0:00:34]}  Rc8 {[%clk 0:00:21]} 32. Ra6 {[%clk 0:00:34]}  Bc7 {[%clk 0:00:14]} 33. Ra7 {[%clk 0:00:28]}  Be8 {[%clk 0:00:04]} 34. Ba6 {[%clk 0:00:28]} 1-0


[Site "https://www.chess.com"]

[Event "Titled Tuesday Blitz July 27 2021"]
[White "Maly, Alexey"]
[Black "De Silva, L M S T"]
[WhiteFideId "14103184"]
[BlackFideId "9953698"]
[WhiteElo "2285"]
[BlackElo "1621"]
[Result "1/2-1/2"]
[Round "04"]
[TimeControl "180+1"]
[Date "2021.07.27"]
[WhiteClock "0:00:42"]
[BlackClock "0:00:25"]

1. d4 {[%clk 0:03:00]}  Nf6 {[%clk 0:03:00]} 2. c4 {[%clk 0:03:00]}  e6 {[%clk 0:03:00]} 3. Nf3 {[%clk 0:03:00]}  b6 {[%clk 0:03:00]} 4. g3 {[%clk 0:03:00]}  Bb7 {[%clk 0:03:01]} 5. Bg2 {[%clk 0:03:00]}  g6 {[%clk 0:03:02]} 6. b3 {[%clk 0:03:00]}  Bg7 {[%clk 0:03:02]} 7. Bb2 {[%clk 0:03:00]}  O-O {[%clk 0:03:01]} 8. O-O {[%clk 0:03:00]}  d6 {[%clk 0:03:01]} 9. Nbd2 {[%clk 0:02:59]}  Ne4 {[%clk 0:02:48]} 10. Nxe4 {[%clk 0:02:53]}  Bxe4 {[%clk 0:02:49]} 11. Qd2 {[%clk 0:02:49]}  Qe7 {[%clk 0:02:47]} 12. Rac1 {[%clk 0:02:47]}  Nd7 {[%clk 0:02:46]} 13. Rfd1 {[%clk 0:02:46]}  f5 {[%clk 0:02:46]} 14. Ne1 {[%clk 0:02:45]}  Bxg2 {[%clk 0:02:46]} 15. Nxg2 {[%clk 0:02:46]}  Rad8 {[%clk 0:02:46]} 16. Nf4 {[%clk 0:02:34]}  Bh6 {[%clk 0:02:33]} 17. e3 {[%clk 0:02:26]}  Nf6 {[%clk 0:02:29]} 18. d5 {[%clk 0:02:23]}  Bxf4 {[%clk 0:02:25]} 19. exf4 {[%clk 0:02:22]}  e5 {[%clk 0:02:14]} 20. fxe5 {[%clk 0:02:19]}  dxe5 {[%clk 0:02:15]} 21. Re1 {[%clk 0:02:15]}  e4 {[%clk 0:02:13]} 22. Qd4 {[%clk 0:02:16]}  c6 {[%clk 0:02:09]} 23. Rcd1 {[%clk 0:02:13]}  cxd5 {[%clk 0:02:07]} 24. cxd5 {[%clk 0:02:13]}  Rxd5 {[%clk 0:02:05]} 25. Qc4 {[%clk 0:02:11]}  b5 {[%clk 0:01:45]} 26. Qc6 {[%clk 0:01:59]}  Qd7 {[%clk 0:01:36]} 27. Qc2 {[%clk 0:01:41]}  Rc8 {[%clk 0:01:21]} 28. Qe2 {[%clk 0:01:32]}  Kf7 {[%clk 0:00:56]} 29. Rxd5 {[%clk 0:01:31]}  Qxd5 {[%clk 0:00:56]} 30. Rd1 {[%clk 0:01:30]}  Qc6 {[%clk 0:00:55]} 31. Qd2 {[%clk 0:01:28]}  Rc7 {[%clk 0:00:44]} 32. Qd8 {[%clk 0:01:20]}  Ne8 {[%clk 0:00:38]} 33. Qd4 {[%clk 0:00:58]}  Qf6 {[%clk 0:00:26]} 34. Qd5+ {[%clk 0:00:54]}  Qe6 {[%clk 0:00:26]} 35. Qd4 {[%clk 0:00:51]}  Qf6 {[%clk 0:00:26]} 36. Qd5+ {[%clk 0:00:52]}  Qe6 {[%clk 0:00:26]} 37. Qd4 {[%clk 0:00:42]}  Qf6 {[%clk 0:00:25]} 1/2-1/2


[Site "https://www.chess.com"]

[Event "Titled Tuesday Blitz July 27 2021"]
[White "Marchena Hurtado, Javier"]
[Black "Trent, Lawrence"]
[WhiteFideId "2271583"]
[BlackFideId "408638"]
[WhiteElo "2106"]
[BlackElo "2474"]
[Result "0-1"]
[Round "04"]
[TimeControl "180+1"]
[Date "2021.07.27"]
[WhiteClock "0:00:17"]
[BlackClock "0:02:20"]

1. e4 {[%clk 0:03:00]}  c5 {[%clk 0:03:00]} 2. Nf3 {[%clk 0:02:59]}  Nc6 {[%clk 0:03:00]} 3. d4 {[%clk 0:03:00]}  cxd4 {[%clk 0:03:00]} 4. Nxd4 {[%clk 0:03:01]}  e6 {[%clk 0:03:00]} 5. Nc3 {[%clk 0:03:00]}  Nf6 {[%clk 0:03:01]} 6. Ndb5 {[%clk 0:02:58]}  Bc5 {[%clk 0:02:59]} 7. Bf4 {[%clk 0:02:52]}  O-O {[%clk 0:02:58]} 8. Bd6 {[%clk 0:02:51]}  Bxd6 {[%clk 0:02:56]} 9. Nxd6 {[%clk 0:02:48]}  Qb6 {[%clk 0:02:56]} 10. Nc4 {[%clk 0:02:40]}  Qc5 {[%clk 0:02:53]} 11. Qd6 {[%clk 0:02:37]}  Qxd6 {[%clk 0:02:49]} 12. Nxd6 {[%clk 0:02:36]}  Ne8 {[%clk 0:02:49]} 13. O-O-O {[%clk 0:02:32]}  Nxd6 {[%clk 0:02:49]} 14. Rxd6 {[%clk 0:02:33]}  f5 {[%clk 0:02:50]} 15. f3 {[%clk 0:02:28]}  f4 {[%clk 0:02:49]} 16. Bb5 {[%clk 0:02:26]}  Ne5 {[%clk 0:02:49]} 17. Ne2 {[%clk 0:02:16]}  a6 {[%clk 0:02:46]} 18. Ba4 {[%clk 0:02:16]}  Nc4 {[%clk 0:02:45]} 19. Rd3 {[%clk 0:02:07]}  b5 {[%clk 0:02:45]} 20. Bb3 {[%clk 0:02:06]}  Ne5 {[%clk 0:02:45]} 21. Rd6 {[%clk 0:02:04]}  g5 {[%clk 0:02:46]} 22. h3 {[%clk 0:01:38]}  Kg7 {[%clk 0:02:45]} 23. Rhd1 {[%clk 0:01:36]}  a5 {[%clk 0:02:41]} 24. a3 {[%clk 0:01:35]}  a4 {[%clk 0:02:40]} 25. Ba2 {[%clk 0:01:34]}  Ra6 {[%clk 0:02:40]} 26. Rxa6 {[%clk 0:01:32]}  Bxa6 {[%clk 0:02:40]} 27. Rd6 {[%clk 0:01:32]}  Bb7 {[%clk 0:02:39]} 28. Rb6 {[%clk 0:01:29]}  Bc6 {[%clk 0:02:39]} 29. Nd4 {[%clk 0:01:29]}  Kf6 {[%clk 0:02:38]} 30. c4 {[%clk 0:01:22]}  bxc4 {[%clk 0:02:37]} 31. Nxc6 {[%clk 0:01:20]}  dxc6 {[%clk 0:02:38]} 32. Rb4 {[%clk 0:01:14]}  Nd3+ {[%clk 0:02:37]} 33. Kc2 {[%clk 0:01:12]}  Nxb4+ {[%clk 0:02:38]} 34. axb4 {[%clk 0:01:12]}  a3 {[%clk 0:02:25]} 35. bxa3 {[%clk 0:01:06]}  Ra8 {[%clk 0:02:25]} 36. Bxc4 {[%clk 0:01:04]}  Rxa3 {[%clk 0:02:25]} 37. Kb2 {[%clk 0:00:53]}  Re3 {[%clk 0:02:24]} 38. Kc2 {[%clk 0:00:51]}  Ke5 {[%clk 0:02:23]} 39. Kd2 {[%clk 0:00:44]}  h5 {[%clk 0:02:21]} 40. b5 {[%clk 0:00:43]}  cxb5 {[%clk 0:02:21]} 41. Bxb5 {[%clk 0:00:44]}  Kd4 {[%clk 0:02:21]} 42. Be8 {[%clk 0:00:42]}  h4 {[%clk 0:02:20]} 43. Bd7 {[%clk 0:00:39]}  e5 {[%clk 0:02:20]} 44. Be6 {[%clk 0:00:33]}  Ra3 {[%clk 0:02:20]} 45. Bf7 {[%clk 0:00:28]}  Ra1 {[%clk 0:02:19]} 46. Ke2 {[%clk 0:00:26]}  Kc3 {[%clk 0:02:19]} 47. Be8 {[%clk 0:00:23]}  Rc1 {[%clk 0:02:19]} 48. Bb5 {[%clk 0:00:21]}  Rc2+ {[%clk 0:02:19]} 49. Kf1 {[%clk 0:00:20]}  Kd2 {[%clk 0:02:20]} 50. Ba6 {[%clk 0:00:19]}  Ke3 {[%clk 0:02:19]} 51. Kg1 {[%clk 0:00:17]}  Rc1+ {[%clk 0:02:20]} 52. Kh2 {[%clk 0:00:17]}  Kf2 {[%clk 0:02:20]} 0-1


[Site "https://www.chess.com"]

[Event "Titled Tuesday Blitz July 27 2021"]
[White "Matveeva, Olga"]
[Black "Vlassov, Nikolai"]
[WhiteFideId "24107018"]
[BlackFideId "4103360"]
[WhiteElo "2108"]
[BlackElo "2407"]
[Result "0-1"]
[Round "04"]
[TimeControl "180+1"]
[Date "2021.07.27"]
[WhiteClock "0:00:05"]
[BlackClock "0:01:23"]

1. d4 {[%clk 0:03:00]}  Nf6 {[%clk 0:02:59]} 2. c4 {[%clk 0:03:01]}  Nc6 {[%clk 0:02:59]} 3. d5 {[%clk 0:02:59]}  Ne5 {[%clk 0:02:59]} 4. Nc3 {[%clk 0:02:57]}  Nxc4 {[%clk 0:02:59]} 5. e4 {[%clk 0:02:56]}  Nb6 {[%clk 0:02:59]} 6. Nf3 {[%clk 0:02:52]}  e6 {[%clk 0:02:58]} 7. Be2 {[%clk 0:02:33]}  exd5 {[%clk 0:02:56]} 8. exd5 {[%clk 0:02:32]}  Bb4 {[%clk 0:02:54]} 9. O-O {[%clk 0:02:31]}  Bxc3 {[%clk 0:02:53]} 10. bxc3 {[%clk 0:02:32]}  Nbxd5 {[%clk 0:02:47]} 11. Bc4 {[%clk 0:02:20]}  Ne7 {[%clk 0:02:34]} 12. Re1 {[%clk 0:02:11]}  d5 {[%clk 0:02:27]} 13. Ba3 {[%clk 0:01:45]}  Be6 {[%clk 0:02:27]} 14. Bd3 {[%clk 0:01:40]}  O-O {[%clk 0:02:23]} 15. Ng5 {[%clk 0:01:36]}  Qd7 {[%clk 0:02:15]} 16. Qc2 {[%clk 0:01:03]}  h6 {[%clk 0:02:11]} 17. Nxe6 {[%clk 0:00:52]}  fxe6 {[%clk 0:02:11]} 18. Re3 {[%clk 0:00:39]}  Rfe8 {[%clk 0:02:06]} 19. Rae1 {[%clk 0:00:38]}  Nf5 {[%clk 0:02:05]} 20. Bxf5 {[%clk 0:00:20]}  exf5 {[%clk 0:02:04]} 21. Re7 {[%clk 0:00:20]}  Rxe7 {[%clk 0:01:48]} 22. Rxe7 {[%clk 0:00:21]}  Re8 {[%clk 0:01:46]} 23. Qe2 {[%clk 0:00:13]}  Rxe7 {[%clk 0:01:44]} 24. Bxe7 {[%clk 0:00:14]}  Ne4 {[%clk 0:01:42]} 25. Bb4 {[%clk 0:00:10]}  c5 {[%clk 0:01:42]} 26. Ba3 {[%clk 0:00:09]}  Qa4 {[%clk 0:01:25]} 27. Bxc5 {[%clk 0:00:05]}  Nxc5 {[%clk 0:01:23]} 0-1


[Site "https://www.chess.com"]

[Event "Titled Tuesday Blitz July 27 2021"]
[White "Mortazavi, Ali"]
[Black "Goltsev, Dmitry"]
[WhiteFideId "401323"]
[BlackFideId "24176710"]
[WhiteElo "2339"]
[BlackElo "2366"]
[Result "1/2-1/2"]
[Round "04"]
[TimeControl "180+1"]
[Date "2021.07.27"]
[WhiteClock "0:00:17"]
[BlackClock "0:00:22"]

1. e4 {[%clk 0:03:00]}  e6 {[%clk 0:02:59]} 2. d3 {[%clk 0:03:01]}  d5 {[%clk 0:02:59]} 3. Nd2 {[%clk 0:03:02]}  Nf6 {[%clk 0:02:58]} 4. Ngf3 {[%clk 0:03:02]}  c5 {[%clk 0:02:58]} 5. g3 {[%clk 0:03:02]}  Nc6 {[%clk 0:02:59]} 6. Bg2 {[%clk 0:03:03]}  Bd6 {[%clk 0:02:58]} 7. O-O {[%clk 0:03:03]}  dxe4 {[%clk 0:02:56]} 8. dxe4 {[%clk 0:03:00]}  Bc7 {[%clk 0:02:55]} 9. c3 {[%clk 0:02:59]}  O-O {[%clk 0:02:51]} 10. Qe2 {[%clk 0:02:58]}  e5 {[%clk 0:02:40]} 11. Rd1 {[%clk 0:02:52]}  Qe7 {[%clk 0:02:38]} 12. a4 {[%clk 0:02:50]}  b6 {[%clk 0:02:38]} 13. Nh4 {[%clk 0:02:43]}  Na5 {[%clk 0:02:23]} 14. Nf5 {[%clk 0:02:32]}  Bxf5 {[%clk 0:02:22]} 15. exf5 {[%clk 0:02:32]}  Rad8 {[%clk 0:02:23]} 16. Ne4 {[%clk 0:02:20]}  Rxd1+ {[%clk 0:02:20]} 17. Qxd1 {[%clk 0:02:20]}  Rd8 {[%clk 0:02:20]} 18. Qc2 {[%clk 0:02:16]}  Nxe4 {[%clk 0:02:06]} 19. Bxe4 {[%clk 0:02:15]}  Qd7 {[%clk 0:02:06]} 20. Bg5 {[%clk 0:01:47]}  f6 {[%clk 0:02:05]} 21. Be3 {[%clk 0:01:47]}  Nc4 {[%clk 0:02:00]} 22. Re1 {[%clk 0:01:28]}  Kf8 {[%clk 0:01:50]} 23. Bc1 {[%clk 0:01:22]}  a6 {[%clk 0:01:35]} 24. b3 {[%clk 0:01:18]}  Nd6 {[%clk 0:01:32]} 25. Rd1 {[%clk 0:01:16]}  Qc8 {[%clk 0:01:26]} 26. Kg2 {[%clk 0:00:51]}  b5 {[%clk 0:01:19]} 27. axb5 {[%clk 0:00:50]}  axb5 {[%clk 0:01:15]} 28. Be3 {[%clk 0:00:47]}  Nxe4 {[%clk 0:00:59]} 29. Rxd8+ {[%clk 0:00:46]}  Bxd8 {[%clk 0:01:00]} 30. Qxe4 {[%clk 0:00:47]}  Be7 {[%clk 0:00:56]} 31. g4 {[%clk 0:00:43]}  c4 {[%clk 0:00:53]} 32. b4 {[%clk 0:00:41]}  Qd7 {[%clk 0:00:53]} 33. Qa8+ {[%clk 0:00:35]}  Kf7 {[%clk 0:00:52]} 34. h3 {[%clk 0:00:26]}  Bd8 {[%clk 0:00:35]} 35. Bc5 {[%clk 0:00:22]}  Ke8 {[%clk 0:00:32]} 36. Qe4 {[%clk 0:00:18]}  Qd3 {[%clk 0:00:26]} 37. Qc6+ {[%clk 0:00:18]}  Qd7 {[%clk 0:00:23]} 38. Qe4 {[%clk 0:00:17]}  Qd3 {[%clk 0:00:22]} 39. Qc6+ {[%clk 0:00:17]}  Qd7 {[%clk 0:00:22]} 40. Qe4 {[%clk 0:00:17]} 1/2-1/2


[Site "https://www.chess.com"]

[Event "Titled Tuesday Blitz July 27 2021"]
[White "Muradli, Mahammad"]
[Black "Karttunen, Mika"]
[WhiteFideId "13409301"]
[BlackFideId "502081"]
[WhiteElo "2482"]
[BlackElo "2343"]
[Result "1-0"]
[Round "04"]
[TimeControl "180+1"]
[Date "2021.07.27"]
[WhiteClock "0:00:48"]
[BlackClock "0:00:19"]

1. Nf3 {[%clk 0:02:51]}  Nf6 {[%clk 0:02:58]} 2. d4 {[%clk 0:02:47]}  g6 {[%clk 0:02:57]} 3. c4 {[%clk 0:02:46]}  Bg7 {[%clk 0:02:57]} 4. Nc3 {[%clk 0:02:47]}  d5 {[%clk 0:02:57]} 5. Bg5 {[%clk 0:02:47]}  Ne4 {[%clk 0:02:54]} 6. Bf4 {[%clk 0:02:47]}  Nxc3 {[%clk 0:02:53]} 7. bxc3 {[%clk 0:02:48]}  dxc4 {[%clk 0:02:54]} 8. e3 {[%clk 0:02:38]}  Be6 {[%clk 0:02:52]} 9. Qb1 {[%clk 0:02:33]}  b6 {[%clk 0:02:26]} 10. Ng5 {[%clk 0:02:23]}  Bd5 {[%clk 0:02:23]} 11. e4 {[%clk 0:02:23]}  Bb7 {[%clk 0:02:20]} 12. Bxc4 {[%clk 0:02:22]}  O-O {[%clk 0:02:20]} 13. O-O {[%clk 0:02:07]}  Nc6 {[%clk 0:02:15]} 14. a4 {[%clk 0:01:51]}  e5 {[%clk 0:02:13]} 15. dxe5 {[%clk 0:01:37]}  Nxe5 {[%clk 0:02:08]} 16. Rd1 {[%clk 0:01:29]}  Qf6 {[%clk 0:01:59]} 17. Bxe5 {[%clk 0:01:22]}  Qxe5 {[%clk 0:01:58]} 18. Nxf7 {[%clk 0:01:23]}  Rxf7 {[%clk 0:01:47]} 19. Bxf7+ {[%clk 0:01:00]}  Kxf7 {[%clk 0:01:46]} 20. Qb3+ {[%clk 0:01:01]}  Kf8 {[%clk 0:01:39]} 21. Rd7 {[%clk 0:00:59]}  Qe8 {[%clk 0:00:41]} 22. Rxc7 {[%clk 0:00:57]}  Bc8 {[%clk 0:00:25]} 23. Qd5 {[%clk 0:00:48]}  Be6 {[%clk 0:00:24]} 24. Qd6+ {[%clk 0:00:48]}  Kg8 {[%clk 0:00:24]} 25. Re7 {[%clk 0:00:49]}  Bf8 {[%clk 0:00:19]} 26. Qxe6+ {[%clk 0:00:48]} 1-0


[Site "https://www.chess.com"]

[Event "Titled Tuesday Blitz July 27 2021"]
[White "Murzin, Volodar"]
[Black "Maltsevskaya, Aleksandra"]
[WhiteFideId "44155573"]
[BlackFideId "24174041"]
[WhiteElo "2541"]
[BlackElo "2225"]
[Result "1-0"]
[Round "04"]
[TimeControl "180+1"]
[Date "2021.07.27"]
[WhiteClock "0:00:02"]
[BlackClock "0:00:01"]

1. e4 {[%clk 0:03:00]}  c6 {[%clk 0:02:57]} 2. Nf3 {[%clk 0:02:54]}  d5 {[%clk 0:02:57]} 3. exd5 {[%clk 0:02:54]}  cxd5 {[%clk 0:02:57]} 4. Ne5 {[%clk 0:02:54]}  Nc6 {[%clk 0:02:56]} 5. Bb5 {[%clk 0:02:54]}  Bd7 {[%clk 0:02:56]} 6. Bxc6 {[%clk 0:02:54]}  Bxc6 {[%clk 0:02:51]} 7. O-O {[%clk 0:02:52]}  e6 {[%clk 0:02:51]} 8. d4 {[%clk 0:02:51]}  Nf6 {[%clk 0:02:51]} 9. Nd2 {[%clk 0:02:49]}  Bd6 {[%clk 0:02:50]} 10. Ndf3 {[%clk 0:02:49]}  Ne4 {[%clk 0:02:49]} 11. c3 {[%clk 0:02:40]}  O-O {[%clk 0:02:49]} 12. Re1 {[%clk 0:02:38]}  f6 {[%clk 0:02:45]} 13. Nxc6 {[%clk 0:02:16]}  bxc6 {[%clk 0:02:44]} 14. Nd2 {[%clk 0:02:14]}  Nxd2 {[%clk 0:02:15]} 15. Bxd2 {[%clk 0:02:15]}  e5 {[%clk 0:02:13]} 16. Qa4 {[%clk 0:02:06]}  Qb6 {[%clk 0:02:10]} 17. Be3 {[%clk 0:02:05]}  e4 {[%clk 0:02:03]} 18. c4 {[%clk 0:01:58]}  Qb7 {[%clk 0:01:47]} 19. Rac1 {[%clk 0:01:50]}  Rac8 {[%clk 0:01:47]} 20. Re2 {[%clk 0:01:25]}  f5 {[%clk 0:01:43]} 21. cxd5 {[%clk 0:00:50]}  cxd5 {[%clk 0:01:44]} 22. Rxc8 {[%clk 0:00:48]}  Rxc8 {[%clk 0:01:45]} 23. Rc2 {[%clk 0:00:48]}  h6 {[%clk 0:00:50]} 24. Qb3 {[%clk 0:00:37]}  Rb8 {[%clk 0:00:33]} 25. Qxb7 {[%clk 0:00:22]}  Rxb7 {[%clk 0:00:34]} 26. g3 {[%clk 0:00:18]}  Kf7 {[%clk 0:00:30]} 27. h4 {[%clk 0:00:17]}  Ke6 {[%clk 0:00:27]} 28. Kf1 {[%clk 0:00:15]}  Kd7 {[%clk 0:00:23]} 29. Ke2 {[%clk 0:00:16]}  Rb8 {[%clk 0:00:23]} 30. b3 {[%clk 0:00:13]}  Rg8 {[%clk 0:00:23]} 31. h5 {[%clk 0:00:13]}  a5 {[%clk 0:00:12]} 32. Bf4 {[%clk 0:00:09]}  a4 {[%clk 0:00:11]} 33. Bxd6 {[%clk 0:00:07]}  Kxd6 {[%clk 0:00:11]} 34. b4 {[%clk 0:00:07]}  a3 {[%clk 0:00:10]} 35. Kd2 {[%clk 0:00:07]}  g5 {[%clk 0:00:07]} 36. hxg6 {[%clk 0:00:06]}  Rxg6 {[%clk 0:00:07]} 37. b5 {[%clk 0:00:07]}  Kd7 {[%clk 0:00:04]} 38. Rc5 {[%clk 0:00:06]}  Rd6 {[%clk 0:00:02]} 39. Ke3 {[%clk 0:00:06]}  Ke6 {[%clk 0:00:02]} 40. Kf4 {[%clk 0:00:07]}  Ke7 {[%clk 0:00:01]} 41. Ke5 {[%clk 0:00:05]}  Re6+ {[%clk 0:00:01]} 42. Kxd5 {[%clk 0:00:05]}  e3 {[%clk 0:00:02]} 43. fxe3 {[%clk 0:00:03]}  Rxe3 {[%clk 0:00:02]} 44. b6 {[%clk 0:00:03]}  Re2 {[%clk 0:00:02]} 45. b7 {[%clk 0:00:02]}  Rb2 {[%clk 0:00:01]} 46. Kc6 {[%clk 0:00:02]} 1-0


[Site "https://www.chess.com"]